lending/lending_fUSD_20240112
["ID","MTS","AMOUNT","RATE_DAILY","PERIOD"]
[311365186,1705068641224,-500.0,0.00022585,2]
[311365187,1705068641233,-500.0,0.00022585,2]
[311365189,1705068641243,-500.0,0.00022585,2]
[311365192,1705068641252,-500.0,0.00022585,2]
[311365193,1705068641261,-896.51,0.00022585,2]
[311365196,1705068641271,-500.0,0.00022585,2]
[311365198,1705068641280,-500.0,0.00022585,2]
[311365200,1705068641289,-500.0,0.00022585,2]
[311365202,1705068641298,-500.0,0.00022585,2]
[311365204,1705068641307,-500.0,0.00022585,2]
[311365206,1705068641316,-792.65,0.00022585,2]
[311365207,1705068641327,-712.49,0.00022585,2]
[311365209,1705068641337,-500.0,0.00022585,2]
[311365211,1705068641346,-500.0,0.00022585,2]
[311365213,1705068641356,-500.0,0.00022585,2]
[311365215,1705068641364,-1100.3,0.00022585,2]
[311365217,1705068641373,-500.0,0.00022585,2]
[311365219,1705068641382,-562.53,0.00022585,2]
[311365222,1705068641391,-506.07910493,0.00022585,2]
[311365224,1705068641400,-500.0,0.00022585,2]
[311365226,1705068641410,-500.0,0.00022585,2]
[311365228,1705068641419,-1718.1,0.00022585,2]
[311365229,1705068641429,-500.0,0.00022585,2]
[311365232,1705068641438,-535.2,0.00022585,2]
[311365234,1705068641447,-500.0,0.00022585,2]
[311365236,1705068641456,-500.0,0.00022585,2]
[311365238,1705068641467,-598.71,0.00022585,2]
[311365239,1705068641476,-3255.5,0.00022585,2]
[311365241,1705068641485,-500.0,0.00022585,2]
[311365243,1705068641494,-500.0,0.00022585,2]
[311365245,1705068641503,-500.0,0.00022585,2]
[311365247,1705068641513,-500.0,0.00022585,2]
[311365249,1705068641522,-500.0,0.00022585,2]
[311365251,1705068641531,-500.0,0.00022585,2]
[311365253,1705068641540,-500.0,0.00022585,2]
[311365255,1705068641550,-500.0,0.00022585,2]
[311365257,1705068641560,-500.0,0.00022585,2]
[311365260,1705068641570,-624.02,0.00022585,2]
[311365262,1705068641579,-500.0,0.00022585,2]
[311365264,1705068641589,-500.0,0.00022585,2]
[311365265,1705068641598,-500.0,0.00022585,2]
[311365267,1705068641608,-500.0,0.00022585,2]
[311365269,1705068641616,-500.0,0.00022585,2]
[311365271,1705068641627,-500.0,0.00022585,2]
[311365273,1705068641639,-500.0,0.00022585,2]
[311365276,1705068641658,-500.0,0.00022585,2]
[311365277,1705068641669,-500.0,0.00022585,2]
[311365279,1705068641678,-1895.47,0.00022585,2]
[311365281,1705068641689,-500.0,0.00022585,2]
[311365283,1705068641699,-500.0,0.00022585,2]
[311365286,1705068641709,-833.52,0.00022585,2]
[311365287,1705068641720,-500.0,0.00022585,2]
[311365289,1705068641730,-500.0,0.00022585,2]
[311365290,1705068641740,-500.0,0.00022585,2]
[311365291,1705068641750,-500.0,0.00022585,2]
[311365292,1705068641761,-150.65966411,0.00022585,2]
[311365293,1705068641771,-500.0,0.00022585,2]
[311365294,1705068641781,-500.0,0.00022585,2]
[311365295,1705068641791,-534.96,0.00022585,2]
[311365296,1705068641800,-500.0,0.00022585,2]
[311365298,1705068641810,-500.0,0.00022585,2]
[311365300,1705068641821,-573.25,0.00022585,2]
[311365302,1705068641830,-500.0,0.00022585,2]
[311365304,1705068641840,-623.75,0.00022585,2]
[311365306,1705068641850,-500.0,0.00022585,2]
[311365308,1705068641859,-500.0,0.00022585,2]
[311365310,1705068641870,-500.0,0.00022585,2]
[311365312,1705068641880,-803.61,0.00022585,2]
[311365314,1705068641889,-500.0,0.00022585,2]
[311365316,1705068641898,-500.0,0.00022585,2]
[311365318,1705068641908,-1705.99,0.00022585,2]
[311365320,1705068641918,-500.0,0.00022585,2]
[311365322,1705068641927,-500.0,0.00022585,2]
[311365324,1705068641937,-500.0,0.00022585,2]
[311365326,1705068641947,-500.0,0.00022585,2]
[311365328,1705068641956,-500.0,0.00022585,2]
[311365330,1705068641965,-500.0,0.00022585,2]
[311365332,1705068641975,-500.0,0.00022585,2]
[311365333,1705068641985,-500.0,0.00022585,2]
[311365335,1705068641996,-500.0,0.00022585,2]
[311365337,1705068642005,-500.0,0.00022585,2]
[311365339,1705068642015,-500.0,0.00022585,2]
[311365342,1705068642025,-1306.6,0.00022585,2]
[311365344,1705068642035,-500.0,0.00022585,2]
[311365345,1705068642045,-500.0,0.00022585,2]
[311365347,1705068642054,-500.0,0.00022585,2]
[311365350,1705068642065,-500.0,0.00022585,2]
[311365352,1705068642075,-500.0,0.00022585,2]
[311365353,1705068642086,-500.0,0.00022585,2]
[311365356,1705068642096,-500.0,0.00022585,2]
[311365357,1705068642106,-500.0,0.00022585,2]
[311365360,1705068642116,-500.0,0.00022585,2]
[311365362,1705068642126,-500.0,0.00022585,2]
[311365364,1705068642137,-500.0,0.00022585,2]
[311365366,1705068642147,-1244.96,0.00022585,2]
[311365367,1705068642156,-500.0,0.00022585,2]
[311365369,1705068642166,-500.0,0.00022585,2]
[311365371,1705068642176,-500.0,0.00022585,2]
[311365373,1705068642186,-564.73,0.00022585,2]
[311365375,1705068642196,-500.0,0.00022585,2]
[311365377,1705068642205,-500.0,0.00022585,2]
[311365379,1705068642215,-500.0,0.00022585,2]
[311365381,1705068642225,-500.0,0.00022585,2]
[311365383,1705068642234,-500.0,0.00022585,2]
[311365385,1705068642246,-500.0,0.00022585,2]
[311365387,1705068642256,-537.48002554,0.00022585,2]
[311365389,1705068642265,-500.0,0.00022585,2]
[311365391,1705068642275,-942.16,0.00022585,2]
[311365393,1705068642285,-500.0,0.00022585,2]
[311365395,1705068642294,-500.0,0.00022585,2]
[311365397,1705068642304,-4152.7,0.00022585,2]
[311365399,1705068642314,-250.0,0.00022585,2]
[311365401,1705068642323,-500.0,0.00022585,2]
[311365403,1705068642333,-676.77,0.00022585,2]
[311365405,1705068642343,-500.0,0.00022585,2]
[311365407,1705068642353,-500.0,0.00022585,2]
[311365409,1705068642363,-500.0,0.00022585,2]
[311365411,1705068642372,-500.0,0.00022585,2]
[311365413,1705068642382,-500.0,0.00022585,2]
[311365415,1705068642391,-500.0,0.00022585,2]
[311365417,1705068642401,-500.0,0.00022585,2]
[311365419,1705068642409,-659.94,0.00022585,2]
[311365421,1705068642418,-500.0,0.00022585,2]
[311365423,1705068642428,-500.0,0.00022585,2]
[311365425,1705068642437,-500.0,0.00022585,2]
[311365427,1705068642447,-500.0,0.00022585,2]
[311365429,1705068642456,-1330.66,0.00022585,2]
[311365431,1705068642466,-500.0,0.00022585,2]
[311365433,1705068642475,-561.56,0.00022585,2]
[311365435,1705068642485,-500.0,0.00022585,2]
[311365437,1705068642495,-368.83405534,0.00022585,2]
[311365439,1705068642505,-1475.03,0.00022585,2]
[311365441,1705068642513,-651.59,0.00022585,2]
[311365443,1705068642523,-498.09118748,0.00022585,2]
[311365445,1705068642532,-500.0,0.00022585,2]
[311365447,1705068642542,-500.0,0.00022585,2]
[311365449,1705068642551,-500.0,0.00022585,2]
[311365451,1705068642560,-500.0,0.00022586,2]
[311365453,1705068642570,-500.0,0.00022586,2]
[311365455,1705068642579,-561.67,0.00022586,2]
[311365457,1705068642588,-155.53567901,0.00022587,2]
[311365459,1705068642597,-192.22393977,0.00022589,2]
[311365461,1705068642606,-156.2,0.00022605,2]
[311365463,1705068642616,-155.53567901,0.00022615,2]
[311365465,1705068642625,-174.62818763,0.00022622,2]
[311365467,1705068642635,-9342.80880172,0.00022627,2]
[311365469,1705068642644,-155.53567901,0.00022644,2]
[311365471,1705068642653,-155.53567901,0.00022673,2]
[311365473,1705068642663,-9342.80880172,0.00022678,2]
[311365475,1705068642672,-173.14,0.00022679,2]
[311365477,1705068642681,-349.45870507,0.00022681,2]
[311365479,1705068642690,-192.22393977,0.00022693,2]
[311365481,1705068642700,-1671.83819161,0.000227,2]
[311365483,1705068642709,-1876.33088348,0.000227,2]
[311365485,1705068642718,-155.53567901,0.00022702,2]
[311365487,1705068642728,-311.43669732,0.00022705,2]
[311365489,1705068642737,-9342.80880172,0.00022729,2]
[311365491,1705068642747,-178.23332526,0.00022729,2]
[311365493,1705068642756,-186.26193995,0.0002273,2]
[311365495,1705068642765,-487.4561927,0.0002273,2]
[311365498,1705068642775,-155.53567901,0.0002273,2]
[311365500,1705068642784,-4730.091946,0.0002274,2]
[311365501,1705068642793,-156.2,0.00022747,2]
[311365504,1705068642803,-314.8680558,0.0002275,2]
[311365506,1705068642812,-155.53567901,0.00022759,2]
[311365508,1705068642821,-10867.9501,0.0002276,2]
[311365510,1705068642829,-174.62818763,0.00022761,2]
[311365511,1705068642838,-9342.80880172,0.00022779,2]
[311365513,1705068642848,-192.22393977,0.00022796,2]
[311365516,1705068642857,-20474.9788733,0.000228,2]
[311365518,1705068642866,-127479.47137489,0.000228,2]
[311365519,1705068642875,-1876.33088346,0.000228,2]
[311365522,1705068642884,-487.4561927,0.00022815,2]
[311365523,1705068642893,-9342.80880172,0.0002283,2]
[311365525,1705068642903,-272.38,0.00022837,2]
[311365527,1705068642913,-470.05133374,0.00022846,2]
[311365529,1705068642925,-630.31,0.00022856,2]
[311365532,1705068642934,-721.09,0.00022856,2]
[311365534,1705068642943,-2248.96,0.00022856,2]
[311365538,1705068642952,-500.0,0.00022856,2]
[311365541,1705068642963,-577.51,0.00022856,2]
[311365542,1705068642971,-588.57,0.00022856,5]
[311365544,1705068642980,-2060.09,0.00022856,2]
[311365546,1705068642989,-1941.66,0.00022856,2]
[311365548,1705068643000,-1089.68,0.00022856,2]
[311365550,1705068643009,-837.26,0.00022856,2]
[311365552,1705068643018,-500.0,0.00022856,2]
[311365554,1705068643027,-500.0,0.00022856,2]
[311365556,1705068643035,-1292.52,0.00022856,2]
[311365558,1705068643045,-698.17,0.00022856,2]
[311365560,1705068643054,-500.0,0.00022856,2]
[311365562,1705068643063,-500.0,0.00022856,2]
[311365564,1705068643071,-522.94,0.00022856,2]
[311365566,1705068643081,-500.0,0.00022856,2]
[311365568,1705068643093,-1262.52,0.00022856,2]
[311365570,1705068643101,-725.35,0.00022856,2]
[311365572,1705068643110,-500.0,0.00022856,2]
[311365574,1705068643119,-350.99524479,0.00022857,2]
[311365576,1705068643128,-10610.74157078,0.00022857,2]
[311365578,1705068643137,-162.33303315,0.00022857,2]
[311365580,1705068643146,-765.63129887,0.00022857,2]
[311365582,1705068643155,-156.52328403,0.00022857,2]
[311365584,1705068643165,-1254.5494995,0.00022857,2]
[311365586,1705068643174,-196.37114886,0.00022857,2]
[311365588,1705068643183,-1540.50888739,0.00022857,2]
[311365590,1705068643192,-384.70888169,0.00022857,2]
[311365592,1705068643201,-1720.0,0.00022857,2]
[311365594,1705068643210,-1938.03,0.00022857,2]
[311365596,1705068643219,-804.87,0.00022857,2]
[311365598,1705068643229,-1796.79,0.00022857,2]
[311365600,1705068643238,-500.0,0.00022857,2]
[311365602,1705068643248,-500.0,0.00022857,2]
[311365604,1705068643257,-1090.85,0.00022857,2]
[311365606,1705068643265,-500.0,0.00022857,2]
[311365608,1705068643274,-540.14992595,0.00022857,2]
[311365610,1705068643283,-744.14,0.00022857,2]
[311365612,1705068643291,-500.0,0.00022857,2]
[311365614,1705068643300,-868.96,0.00022857,2]
[311365616,1705068643309,-646.39,0.00022857,2]
[311365618,1705068643318,-2111.83,0.00022857,2]
[311365620,1705068643326,-12297.83,0.00022857,2]
[311365622,1705068643335,-958.19,0.00022857,2]
[311365624,1705068643345,-500.0,0.00022857,2]
[311365625,1705068643354,-1151.6,0.00022857,2]
[311365627,1705068643363,-756.02,0.00022857,2]
[311365629,1705068643372,-1143.99,0.00022857,2]
[311365631,1705068643381,-1587.37,0.00022857,2]
[311365633,1705068643390,-843.27,0.00022857,2]
[311365635,1705068643399,-500.0,0.00022857,2]
[311365637,1705068643408,-1266.58,0.00022857,2]
[311365639,1705068643417,-500.0,0.00022857,2]
[311365641,1705068643426,-500.0,0.00022857,2]
[311365643,1705068643435,-500.0,0.00022857,2]
[311365645,1705068643445,-1261.09,0.00022857,2]
[311365647,1705068643454,-500.0,0.00022857,2]
[311365649,1705068643463,-500.0,0.00022857,2]
[311365651,1705068643473,-534.0,0.00022857,5]
[311365653,1705068643482,-3255.81,0.00022857,2]
[311365655,1705068643492,-500.0,0.00022857,2]
[311365657,1705068643501,-553.66,0.00022857,2]
[311365659,1705068643510,-1386.35,0.00022858,2]
[311365661,1705068643519,-857.71,0.00022858,2]
[311365663,1705068643528,-1024.75,0.00022858,2]
[311365665,1705068643537,-1187.56,0.00022858,2]
[311365667,1705068643546,-538.53,0.00022858,2]
[311365669,1705068643556,-2158.41,0.00022858,2]
[311365670,1705068643566,-17284.67,0.00022858,2]
[311365671,1705068643575,-6924.74,0.00022858,2]
[311365672,1705068643584,-1013.28,0.00022858,2]
[311365673,1705068643593,-500.0,0.00022858,2]
[311365674,1705068643602,-762.42,0.00022858,2]
[311365675,1705068643611,-9784.16,0.00022858,2]
[311365676,1705068643621,-1638.91,0.00022858,2]
[311365677,1705068643630,-562.74,0.00022858,2]
[311365679,1705068643639,-500.0,0.00022858,2]
[311365681,1705068643648,-964.34,0.00022858,2]
[311365683,1705068643657,-2277.34,0.00022858,2]
[311365685,1705068643666,-2348.15,0.00022858,2]
[311365687,1705068643675,-970.02,0.00022858,2]
[311365690,1705068643684,-1067.75,0.00022858,2]
[311365693,1705068643693,-1474.9,0.00022858,2]
[311365695,1705068643702,-777.74,0.00022858,2]
[311365696,1705068643712,-603.63,0.00022858,2]
[311365698,1705068643720,-946.59,0.00022858,2]
[311365701,1705068643730,-1895.47,0.00022858,2]
[311365702,1705068643739,-5455.24,0.00022858,2]
[311365704,1705068643749,-1182.07,0.00022858,2]
[311365707,1705068643759,-2004.16,0.00022858,2]
[311365709,1705068643768,-1847.51,0.00022858,2]
[311365711,1705068643777,-500.0,0.00022858,2]
[311365713,1705068643786,-1133.78,0.00022858,2]
[311365714,1705068643795,-909.26,0.00022858,2]
[311365716,1705068643804,-568.23,0.00022858,2]
[311365719,1705068643814,-1481.44,0.00022858,2]
[311365721,1705068643823,-4797.62,0.00022858,2]
[311365722,1705068643832,-1916.94,0.00022858,2]
[311365724,1705068643841,-1908.08,0.00022858,2]
[311365726,1705068643850,-10117.18,0.00022858,2]
[311365728,1705068643859,-522.59,0.00022858,2]
[311365730,1705068643868,-600.68,0.00022858,2]
[311365732,1705068643876,-614.86,0.00022858,2]
[311365734,1705068643885,-500.0,0.00022858,2]
[311365736,1705068643895,-1033.45,0.00022858,2]
[311365738,1705068643905,-2614.77,0.00022858,2]
[311365740,1705068643915,-3739.6,0.00022858,2]
[311365742,1705068643926,-2605.51,0.00022858,2]
[311365744,1705068643935,-500.0,0.00022859,2]
[311365746,1705068643944,-500.0,0.00022859,2]
[311365749,1705068643956,-500.0,0.00022859,2]
[311365750,1705068643965,-500.0,0.00022859,2]
[311365752,1705068643975,-500.0,0.00022859,2]
[311365754,1705068643985,-500.0,0.00022859,2]
[311365756,1705068643996,-500.0,0.00022859,2]
[311365759,1705068644005,-500.0,0.00022859,2]
[311365760,1705068644014,-500.0,0.00022859,2]
[311365763,1705068644023,-500.0,0.00022859,2]
[311365764,1705068644032,-500.0,0.00022859,2]
[311365766,1705068644041,-500.0,0.00022859,2]
[311365768,1705068644053,-500.0,0.00022859,2]
[311365771,1705068644063,-500.0,0.00022859,2]
[311365773,1705068644072,-500.0,0.00022859,2]
[311365774,1705068644081,-500.0,0.00022859,2]
[311365776,1705068644090,-500.0,0.00022859,2]
[311365778,1705068644099,-500.0,0.00022859,2]
[311365780,1705068644108,-500.0,0.00022859,2]
[311365782,1705068644117,-500.0,0.00022859,2]
[311365784,1705068644126,-500.0,0.00022859,2]
[311365786,1705068644135,-500.0,0.00022859,2]
[311365788,1705068644144,-500.0,0.00022859,2]
[311365790,1705068644153,-500.0,0.00022859,2]
[311365792,1705068644163,-500.0,0.00022859,2]
[311365794,1705068644179,-500.0,0.00022859,2]
[311365796,1705068644189,-500.0,0.00022859,2]
[311365798,1705068644198,-500.0,0.00022859,2]
[311365800,1705068644207,-500.0,0.00022859,2]
[311365802,1705068644216,-500.0,0.00022859,2]
[311365804,1705068644226,-500.0,0.00022859,2]
[311365806,1705068644235,-500.0,0.00022859,2]
[311365808,1705068644245,-500.0,0.00022859,2]
[311365810,1705068644254,-500.0,0.00022859,2]
[311365812,1705068644263,-500.0,0.00022859,2]
[311365814,1705068644272,-500.0,0.00022859,2]
[311365816,1705068644281,-500.0,0.00022859,2]
[311365818,1705068644290,-500.0,0.00022859,2]
[311365820,1705068644299,-500.0,0.00022859,2]
[311365822,1705068644310,-500.0,0.00022859,2]
[311365824,1705068644319,-500.0,0.00022859,2]
[311365826,1705068644328,-650.31,0.00022859,2]
[311365828,1705068644337,-500.0,0.00022859,2]
[311365830,1705068644346,-500.0,0.00022859,2]
[311365832,1705068644355,-500.0,0.00022859,2]
[311365834,1705068644364,-534.55,0.00022859,2]
[311365836,1705068644374,-500.0,0.00022859,2]
[311365838,1705068644386,-500.0,0.00022859,2]
[311365840,1705068644396,-500.0,0.00022859,2]
[311365842,1705068644405,-500.0,0.00022859,2]
[311365844,1705068644414,-500.0,0.00022859,2]
[311365846,1705068644423,-292.55498367,0.00022859,2]
[311365848,1705068644432,-500.0,0.00022859,2]
[311365850,1705068644441,-500.0,0.00022859,2]
[311365852,1705068644451,-500.0,0.00022859,2]
[311365854,1705068644460,-500.0,0.00022859,2]
[311365856,1705068644470,-500.0,0.00022859,2]
[311365858,1705068644479,-500.0,0.00022859,2]
[311365860,1705068644488,-500.0,0.00022859,2]
[311365862,1705068644498,-500.0,0.00022859,2]
[311365864,1705068644507,-500.0,0.00022859,2]
[311365866,1705068644516,-500.0,0.00022859,2]
[311365868,1705068644526,-500.0,0.00022859,2]
[311365870,1705068644535,-500.0,0.00022859,2]
[311365872,1705068644545,-500.0,0.00022859,2]
[311365875,1705068644555,-500.0,0.00022859,2]
[311365877,1705068644564,-617.86,0.00022859,2]
[311365879,1705068644575,-500.0,0.00022859,2]
[311365881,1705068644584,-500.0,0.00022859,2]
[311365883,1705068644593,-500.0,0.00022859,2]
[311365885,1705068644602,-500.0,0.00022859,2]
[311365887,1705068644611,-500.0,0.00022859,2]
[311365889,1705068644621,-500.0,0.00022859,2]
[311365890,1705068644630,-500.0,0.00022859,2]
[311365891,1705068644639,-500.0,0.00022859,2]
[311365892,1705068644649,-500.0,0.00022859,2]
[311365893,1705068644658,-500.0,0.00022859,2]
[311365894,1705068644667,-500.0,0.00022859,2]
[311365895,1705068644676,-500.0,0.00022859,2]
[311365896,1705068644685,-500.0,0.00022859,2]
[311365897,1705068644695,-500.0,0.00022859,2]
[311365898,1705068644704,-631.34,0.00022859,2]
[311365899,1705068644713,-500.0,0.00022859,2]
[311365900,1705068644723,-500.0,0.00022859,2]
[311365901,1705068644732,-433.50357352,0.00022859,2]
[311365902,1705068644742,-500.0,0.00022859,2]
[311365903,1705068644751,-500.0,0.00022859,2]
[311365904,1705068644761,-500.0,0.00022859,2]
[311365905,1705068644770,-500.0,0.00022859,2]
[311365906,1705068644779,-500.0,0.00022859,2]
[311365907,1705068644789,-500.0,0.00022859,2]
[311365908,1705068644799,-500.0,0.00022859,2]
[311365909,1705068644808,-500.0,0.00022859,2]
[311365910,1705068644818,-500.0,0.00022859,2]
[311365911,1705068644827,-500.0,0.00022859,2]
[311365912,1705068644838,-500.0,0.00022859,2]
[311365913,1705068644847,-500.0,0.00022859,2]
[311365914,1705068644856,-500.0,0.00022859,2]
[311365915,1705068644866,-712.24,0.00022859,2]
[311365916,1705068644875,-500.0,0.00022859,2]
[311365917,1705068644884,-500.0,0.00022859,2]
[311365918,1705068644895,-500.0,0.00022859,2]
[311365919,1705068644905,-500.0,0.00022859,2]
[311365920,1705068644918,-500.0,0.00022859,2]
[311365921,1705068645049,-500.0,0.00022859,2]
[311365922,1705068645060,-500.0,0.00022859,2]
[311365923,1705068645069,-500.0,0.00022859,2]
[311365924,1705068645079,-500.0,0.00022859,2]
[311365925,1705068645089,-500.0,0.00022859,2]
[311365926,1705068645098,-500.0,0.00022859,2]
[311365927,1705068645108,-500.0,0.00022859,2]
[311365928,1705068645117,-673.39,0.00022859,2]
[311365929,1705068645127,-531.44,0.00022859,2]
[311365930,1705068645136,-500.0,0.00022859,2]
[311365931,1705068645145,-500.0,0.00022859,2]
[311365932,1705068645155,-500.0,0.00022859,2]
[311365933,1705068645164,-500.0,0.00022859,2]
[311365934,1705068645173,-500.0,0.00022859,2]
[311365935,1705068645182,-500.0,0.00022859,2]
[311365936,1705068645192,-500.0,0.00022859,2]
[311365937,1705068645201,-500.0,0.00022859,2]
[311365938,1705068645211,-458.40433968,0.00022859,2]
[311365939,1705068645220,-700.48,0.00022859,2]
[311365940,1705068645229,-500.0,0.00022859,2]
[311365941,1705068645239,-500.0,0.00022859,2]
[311365942,1705068645250,-500.0,0.00022859,2]
[311365943,1705068645260,-500.0,0.00022859,2]
[311365944,1705068645270,-500.0,0.00022859,2]
[311365945,1705068645279,-500.0,0.00022859,2]
[311365946,1705068645289,-1205.53,0.00022859,2]
[311365947,1705068645299,-500.0,0.00022859,2]
[311365948,1705068645309,-500.0,0.00022859,2]
[311365949,1705068645318,-500.0,0.00022859,2]
[311365950,1705068645327,-500.0,0.00022859,2]
[311365951,1705068645337,-500.0,0.00022859,2]
[311365952,1705068645346,-407.91446519,0.00022859,2]
[311365953,1705068645355,-500.0,0.00022859,2]
[311365954,1705068645365,-500.0,0.00022859,2]
[311365955,1705068645374,-500.0,0.00022859,2]
[311365956,1705068645385,-541.12,0.00022859,2]
[311365957,1705068645395,-521.41,0.00022859,2]
[311365958,1705068645404,-500.0,0.00022859,2]
[311365959,1705068645413,-480.57949157,0.00022859,2]
[311365960,1705068645428,-500.0,0.00022859,2]
[311365961,1705068645438,-500.0,0.00022859,2]
[311365962,1705068645447,-500.0,0.00022859,2]
[311365963,1705068645458,-500.0,0.00022859,2]
[311365964,1705068645468,-500.0,0.00022859,2]
[311365965,1705068645478,-500.0,0.00022859,2]
[311365966,1705068645488,-645.79,0.00022859,2]
[311365967,1705068645501,-500.0,0.00022859,2]
[311365968,1705068645511,-500.0,0.00022859,2]
[311365969,1705068645520,-500.0,0.00022859,2]
[311365970,1705068645530,-500.0,0.00022859,2]
[311365971,1705068645539,-500.0,0.00022859,2]
[311365972,1705068645549,-500.0,0.00022859,2]
[311365973,1705068645558,-500.0,0.00022859,2]
[311365974,1705068645568,-546.37,0.00022859,2]
[311365975,1705068645578,-500.0,0.00022859,2]
[311365976,1705068645588,-500.0,0.00022859,2]
[311365977,1705068645598,-500.0,0.00022859,2]
[311365978,1705068645608,-560.08,0.00022859,2]
[311365979,1705068645617,-500.0,0.00022859,2]
[311365980,1705068645637,-500.0,0.00022859,2]
[311365981,1705068645648,-500.0,0.00022859,2]
[311365982,1705068645658,-500.0,0.00022859,2]
[311365983,1705068645667,-500.0,0.00022859,2]
[311365985,1705068645678,-500.0,0.00022859,2]
[311365987,1705068645688,-500.0,0.00022859,2]
[311365989,1705068645698,-500.0,0.00022859,2]
[311365991,1705068645707,-500.0,0.00022859,2]
[311365993,1705068645716,-811.67,0.00022859,2]
[311365995,1705068645726,-500.0,0.00022859,2]
[311365997,1705068645735,-500.0,0.00022859,2]
[311365999,1705068645746,-500.0,0.00022859,2]
[311366001,1705068645757,-500.0,0.00022859,2]
[311366003,1705068645767,-500.0,0.00022859,2]
[311366005,1705068645777,-500.0,0.00022859,2]
[311366007,1705068645786,-783.91,0.00022859,2]
[311366009,1705068645795,-500.0,0.00022859,2]
[311366011,1705068645805,-506.91,0.00022859,2]
[311366013,1705068645814,-500.0,0.00022859,2]
[311366015,1705068645823,-500.0,0.00022859,2]
[311366017,1705068645833,-500.0,0.00022859,2]
[311366019,1705068645843,-500.0,0.00022859,2]
[311366022,1705068645852,-500.0,0.00022859,2]
[311366025,1705068645862,-500.0,0.00022859,2]
[311366028,1705068645873,-500.0,0.00022859,2]
[311366031,1705068645882,-500.0,0.00022859,2]
[311366034,1705068645891,-500.0,0.00022859,2]
[311366036,1705068645901,-500.0,0.00022859,2]
[311366040,1705068645911,-500.0,0.00022859,2]
[311366042,1705068645920,-965.34,0.00022859,2]
[311366044,1705068645929,-550.82,0.00022859,2]
[311366047,1705068645942,-500.0,0.00022859,2]
[311366049,1705068645951,-500.0,0.00022859,2]
[311366051,1705068645961,-500.0,0.00022859,2]
[311366053,1705068645971,-500.0,0.00022859,2]
[311366056,1705068645981,-500.0,0.00022859,2]
[311366059,1705068645990,-544.63,0.00022859,2]
[311366061,1705068646001,-500.0,0.00022859,2]
[311366064,1705068646011,-500.0,0.00022859,2]
[311366067,1705068646020,-500.0,0.00022859,2]
[311366069,1705068646030,-500.0,0.00022859,2]
[311366072,1705068646039,-500.0,0.00022859,2]
[311366075,1705068646049,-500.0,0.00022859,2]
[311366079,1705068646058,-500.0,0.00022859,2]
[311366082,1705068646068,-500.0,0.00022859,2]
[311366086,1705068646077,-500.0,0.00022859,2]
[311366090,1705068646088,-500.0,0.00022859,2]
[311366094,1705068646097,-500.0,0.00022859,2]
[311366099,1705068646106,-613.81,0.00022859,2]
[311366103,1705068646115,-500.0,0.00022859,2]
[311366106,1705068646125,-500.0,0.00022859,2]